[Event "Early-Titled-Tuesday-Blitz-July-09-2024"]
[Site "Chess.com"]
[Date "2024.07.09"]
[Round "2"]
[White "Bilan_Danila"]
[Black "jasrom"]
[Result "0-1"]
[WhiteElo "2584"]
[BlackElo "2331"]
[TimeControl "180+1"]
[EndTime "8:19:34 PDT"]
[Termination "jasrom won by checkmate"]

1. d4 {[%clk 0:02:22.7]} 1... d5 {[%clk 0:02:59.5]} 2. Nf3 {[%clk 0:02:21.4]}
2... e6 {[%clk 0:02:59.4]} 3. g3 {[%clk 0:02:18.5]} 3... Nf6 {[%clk 0:02:58.7]}
4. Bg2 {[%clk 0:02:19.4]} 4... c5 {[%clk 0:02:58.7]} 5. c4 {[%clk 0:02:19.2]}
5... Nc6 {[%clk 0:02:58.2]} 6. cxd5 {[%clk 0:02:19.3]} 6... Nxd5 {[%clk
0:02:56.3]} 7. O-O {[%clk 0:02:15.7]} 7... Be7 {[%clk 0:02:56.1]} 8. e4 {[%clk
0:02:06.6]} 8... Nf6 {[%clk 0:02:54.9]} 9. e5 {[%clk 0:01:49.1]} 9... Nd5 {[%clk
0:02:53.9]} 10. Nc3 {[%clk 0:01:41.4]} 10... cxd4 {[%clk 0:02:43.7]} 11. Nxd4
{[%clk 0:01:41.3]} 11... O-O {[%clk 0:02:24.5]} 12. Nxd5 {[%clk 0:01:31.2]}
12... exd5 {[%clk 0:02:25.4]} 13. Nxc6 {[%clk 0:01:10.4]} 13... bxc6 {[%clk
0:02:25]} 14. Be3 {[%clk 0:00:56]} 14... Bf5 {[%clk 0:01:46.6]} 15. Rc1 {[%clk
0:00:52.8]} 15... Qd7 {[%clk 0:01:46.7]} 16. Qa4 {[%clk 0:00:48.7]} 16... Rfc8
{[%clk 0:01:38.4]} 17. Rfd1 {[%clk 0:00:37.5]} 17... a5 {[%clk 0:01:33]} 18. Bc5
{[%clk 0:00:30.5]} 18... Bg5 {[%clk 0:01:27.1]} 19. f4 {[%clk 0:00:29.5]} 19...
Bd8 {[%clk 0:01:26.6]} 20. Rc3 {[%clk 0:00:20.9]} 20... Qb7 {[%clk 0:01:16.4]}
21. b3 {[%clk 0:00:20.1]} 21... Bg4 {[%clk 0:01:11.1]} 22. Rdc1 {[%clk
0:00:19.4]} 22... Be2 {[%clk 0:01:08.8]} 23. Bd6 {[%clk 0:00:13.8]} 23... Bb5
{[%clk 0:01:07.8]} 24. Qd4 {[%clk 0:00:14.3]} 24... Bb6 {[%clk 0:01:03.8]} 25.
Bc5 {[%clk 0:00:14.2]} 25... Bd8 {[%clk 0:01:03.9]} 26. h3 {[%clk 0:00:12.9]}
26... a4 {[%clk 0:01:04.2]} 27. Kh2 {[%clk 0:00:10.3]} 27... axb3 {[%clk
0:01:02.9]} 28. axb3 {[%clk 0:00:11.2]} 28... Ra2 {[%clk 0:01:03.2]} 29. R3c2
{[%clk 0:00:11.6]} 29... Rca8 {[%clk 0:01:01.9]} 30. Bd6 {[%clk 0:00:06.9]}
30... Bb6 {[%clk 0:00:59.7]} 31. Bc5 {[%clk 0:00:07]} 31... Bd8 {[%clk
0:00:57.3]} 32. f5 {[%clk 0:00:07.5]} 32... Qd7 {[%clk 0:00:56.1]} 33. Qg4
{[%clk 0:00:04.8]} 33... Bd3 {[%clk 0:00:50.3]} 34. Rxa2 {[%clk 0:00:03.7]}
34... Rxa2 {[%clk 0:00:50.3]} 35. Kg1 {[%clk 0:00:03]} 35... Bxf5 {[%clk
0:00:46]} 36. Qb4 {[%clk 0:00:02.1]} 36... h6 {[%clk 0:00:45.4]} 37. Qb8 {[%clk
0:00:01.7]} 37... Kh7 {[%clk 0:00:38]} 38. Qb7 {[%clk 0:00:01.8]} 38... Bxh3
{[%clk 0:00:36.4]} 39. Qxd7 {[%clk 0:00:01.7]} 39... Bxd7 {[%clk 0:00:34.5]} 40.
Bd6 {[%clk 0:00:02.3]} 40... Bb6+ {[%clk 0:00:33.2]} 41. Kh1 {[%clk 0:00:02.1]}
41... Be3 {[%clk 0:00:32]} 42. Rb1 {[%clk 0:00:01.9]} 42... Bf2 {[%clk
0:00:30.1]} 43. g4 {[%clk 0:00:01]} 43... Bxg4 {[%clk 0:00:29.1]} 44. Bf1 {[%clk
0:00:01.7]} 44... Bf5 {[%clk 0:00:29]} 45. Rd1 {[%clk 0:00:01.3]} 45... Be4+
{[%clk 0:00:28.9]} 46. Bg2 {[%clk 0:00:01.4]} 46... Bc2 {[%clk 0:00:27.4]} 47.
Rf1 {[%clk 0:00:01.4]} 47... Bxb3 {[%clk 0:00:27]} 48. Kh2 {[%clk 0:00:01.1]}
48... Bc4 {[%clk 0:00:27.2]} 49. Kh3 {[%clk 0:00:01.7]} 49... Bxf1 {[%clk
0:00:26.6]} 50. Bxf1 {[%clk 0:00:02.6]} 50... Bd4 {[%clk 0:00:26.9]} 51. Bd3+
{[%clk 0:00:02.8]} 51... g6 {[%clk 0:00:26.4]} 52. Kg4 {[%clk 0:00:03.3]} 52...
c5 {[%clk 0:00:26.7]} 53. Kf4 {[%clk 0:00:03.1]} 53... c4 {[%clk 0:00:26.8]} 54.
Bb1 {[%clk 0:00:03.6]} 54... Rf2+ {[%clk 0:00:25.9]} 55. Kg4 {[%clk 0:00:03.3]}
55... Re2 {[%clk 0:00:26.1]} 56. e6 {[%clk 0:00:01.1]} 56... Rxe6 {[%clk
0:00:24.6]} 57. Bf4 {[%clk 0:00:01.8]} 57... h5+ {[%clk 0:00:24]} 58. Kf3 {[%clk
0:00:01.4]} 58... Be5 {[%clk 0:00:23.9]} 59. Bc1 {[%clk 0:00:01.1]} 59... f5
{[%clk 0:00:23.6]} 60. Bc2 {[%clk 0:00:01.2]} 60... d4 {[%clk 0:00:23.8]} 61.
Bg5 {[%clk 0:00:01.9]} 61... d3 {[%clk 0:00:23.3]} 62. Ba4 {[%clk 0:00:02.6]}
62... Bf6 {[%clk 0:00:21.2]} 63. Bd2 {[%clk 0:00:02.6]} 63... g5 {[%clk
0:00:20.8]} 64. Bd7 {[%clk 0:00:01.9]} 64... Re5 {[%clk 0:00:20.2]} 65. Bc3
{[%clk 0:00:02]} 65... Rd5 {[%clk 0:00:12]} 66. Be6 {[%clk 0:00:01.9]} 66... Rc5
{[%clk 0:00:08.5]} 67. Bxf6 {[%clk 0:00:02]} 67... Kg6 {[%clk 0:00:06.9]} 68.
Bc3 {[%clk 0:00:02]} 68... Rb5 {[%clk 0:00:05.7]} 69. Bd7 {[%clk 0:00:02]} 69...
Rb3 {[%clk 0:00:05.5]} 70. Bd2 {[%clk 0:00:02.2]} 70... c3 {[%clk 0:00:05.8]}
71. Be3 {[%clk 0:00:02.5]} 71... d2 {[%clk 0:00:05.2]} 72. Ke2 {[%clk
0:00:01.5]} 72... Rb1 {[%clk 0:00:05.5]} 73. Ba4 {[%clk 0:00:01.3]} 73... Re1+
{[%clk 0:00:05.5]} 74. Kd3 {[%clk 0:00:01.6]} 74... d1=Q+ {[%clk 0:00:06]} 75.
Bxd1 {[%clk 0:00:02.5]} 75... Rxd1+ {[%clk 0:00:06.4]} 76. Kxc3 {[%clk
0:00:03.4]} 76... Re1 {[%clk 0:00:06.6]} 77. Kd4 {[%clk 0:00:04.3]} 77... Rxe3
{[%clk 0:00:06.7]} 78. Kxe3 {[%clk 0:00:05.2]} 78... h4 {[%clk 0:00:07.4]} 79.
Kf3 {[%clk 0:00:06.1]} 79... h3 {[%clk 0:00:07.8]} 80. Kf2 {[%clk 0:00:07]}
80... g4 {[%clk 0:00:08.4]} 81. Kg3 {[%clk 0:00:07.5]} 81... Kg5 {[%clk
0:00:08.9]} 82. Kh2 {[%clk 0:00:08.4]} 82... f4 {[%clk 0:00:09]} 83. Kg1 {[%clk
0:00:09.3]} 83... Kh4 {[%clk 0:00:09]} 84. Kh2 {[%clk 0:00:10.2]} 84... g3+
{[%clk 0:00:09.2]} 85. Kg1 {[%clk 0:00:11.1]} 85... Kg4 {[%clk 0:00:09.8]} 86.
Kh1 {[%clk 0:00:12]} 86... f3 {[%clk 0:00:09.8]} 87. Kg1 {[%clk 0:00:12.9]}
87... Kf4 {[%clk 0:00:10.3]} 88. Kf1 {[%clk 0:00:13.4]} 88... Ke3 {[%clk
0:00:10.4]} 89. Kg1 {[%clk 0:00:14.1]} 89... f2+ {[%clk 0:00:10]} 90. Kf1 {[%clk
0:00:14.4]} 90... g2# {[%clk 0:00:10.1]} 0-1

[Event "Early-Titled-Tuesday-Blitz-July-09-2024"]
[Site "Chess.com"]
[Date "2024.07.09"]
[Round "2"]
[White "FARIZA2018"]
[Black "stollenmonster"]
[Result "1-0"]
[WhiteElo "2627"]
[BlackElo "2888"]
[TimeControl "180+1"]
[EndTime "8:19:39 PDT"]
[Termination "FARIZA2018 won by resignation"]

1. e4 {[%clk 0:03:00.9]} 1... c5 {[%clk 0:03:00]} 2. Nf3 {[%clk 0:03:00.7]} 2...
Nf6 {[%clk 0:03:00.3]} 3. e5 {[%clk 0:02:55.7]} 3... Nd5 {[%clk 0:03:00.8]} 4.
c4 {[%clk 0:02:50.4]} 4... Nc7 {[%clk 0:02:59.6]} 5. d4 {[%clk 0:02:48]} 5...
cxd4 {[%clk 0:03:00.5]} 6. Qxd4 {[%clk 0:02:47.6]} 6... Nc6 {[%clk 0:03:01.4]}
7. Qe3 {[%clk 0:02:45.9]} 7... g6 {[%clk 0:03:01.2]} 8. Nc3 {[%clk 0:02:44.8]}
8... Bg7 {[%clk 0:03:01.7]} 9. Bd3 {[%clk 0:02:42.2]} 9... O-O {[%clk
0:03:01.6]} 10. O-O {[%clk 0:02:42.3]} 10... d6 {[%clk 0:03:00.9]} 11. exd6
{[%clk 0:02:42.1]} 11... exd6 {[%clk 0:03:00.7]} 12. h3 {[%clk 0:02:33.5]} 12...
d5 {[%clk 0:02:59.3]} 13. Nxd5 {[%clk 0:02:32.6]} 13... Nxd5 {[%clk 0:03:00.2]}
14. cxd5 {[%clk 0:02:33]} 14... Qxd5 {[%clk 0:03:01.1]} 15. Be4 {[%clk
0:02:32.4]} 15... Qb5 {[%clk 0:02:58.2]} 16. Rb1 {[%clk 0:02:28]} 16... Bf5
{[%clk 0:02:56.4]} 17. Bxf5 {[%clk 0:02:27.5]} 17... Qxf5 {[%clk 0:02:57.3]} 18.
Bd2 {[%clk 0:02:26.4]} 18... Rad8 {[%clk 0:02:55.3]} 19. Qb3 {[%clk 0:02:21.3]}
19... b6 {[%clk 0:02:07.8]} 20. Bc3 {[%clk 0:02:21.2]} 20... Rd3 {[%clk
0:02:04.4]} 21. Rbc1 {[%clk 0:02:17.1]} 21... Rxf3 {[%clk 0:01:16.4]} 22. gxf3
{[%clk 0:02:17.2]} 22... Bxc3 {[%clk 0:01:17.1]} 23. Qxc3 {[%clk 0:02:09.7]}
23... Nd8 {[%clk 0:01:07]} 24. Kh2 {[%clk 0:02:03.8]} 24... Ne6 {[%clk
0:01:06.7]} 25. Rg1 {[%clk 0:01:30.8]} 25... h5 {[%clk 0:01:05]} 26. Rce1 {[%clk
0:01:25.5]} 26... Ng5 {[%clk 0:01:00.4]} 27. f4 {[%clk 0:01:12.7]} 27... Ne6
{[%clk 0:00:56.8]} 28. Qe5 {[%clk 0:01:09.5]} 28... Qxf4+ {[%clk 0:00:52]} 29.
Qxf4 {[%clk 0:01:09.4]} 29... Nxf4 {[%clk 0:00:52.9]} 30. Rg3 {[%clk 0:01:02.5]}
30... Rd8 {[%clk 0:00:50.4]} 31. Rf3 {[%clk 0:01:01.5]} 31... Ne6 {[%clk
0:00:46]} 32. Re2 {[%clk 0:00:59]} 32... Rd1 {[%clk 0:00:39.7]} 33. Rc3 {[%clk
0:00:56.5]} 33... h4 {[%clk 0:00:36.4]} 34. Rc4 {[%clk 0:00:40.8]} 34... g5
{[%clk 0:00:36.4]} 35. b4 {[%clk 0:00:36.8]} 35... Kg7 {[%clk 0:00:30.7]} 36. a4
{[%clk 0:00:25]} 36... Rd3 {[%clk 0:00:31.1]} 37. Rce4 {[%clk 0:00:22.1]} 37...
Kg6 {[%clk 0:00:24]} 38. R4e3 {[%clk 0:00:21.3]} 38... Rd4 {[%clk 0:00:23.9]}
39. Rb2 {[%clk 0:00:21.5]} 39... Nf4 {[%clk 0:00:21.4]} 40. a5 {[%clk
0:00:20.5]} 40... f6 {[%clk 0:00:18.5]} 41. axb6 {[%clk 0:00:19.9]} 41... axb6
{[%clk 0:00:19.4]} 42. b5 {[%clk 0:00:20.3]} 42... Rd1 {[%clk 0:00:17.5]} 43.
Reb3 {[%clk 0:00:15.7]} 43... f5 {[%clk 0:00:13.8]} 44. Ra2 {[%clk 0:00:14.5]}
44... Kh5 {[%clk 0:00:12.1]} 45. Ra6 {[%clk 0:00:13.8]} 45... Rd6 {[%clk
0:00:11.2]} 46. Rc3 {[%clk 0:00:09.7]} 46... g4 {[%clk 0:00:11.6]} 47. hxg4+
{[%clk 0:00:10]} 47... Kxg4 {[%clk 0:00:12.2]} 48. Ra4 {[%clk 0:00:08.8]} 48...
Kg5 {[%clk 0:00:11.1]} 49. Rf3 {[%clk 0:00:08.6]} 49... Ng6 {[%clk 0:00:10.9]}
50. Rc4 {[%clk 0:00:06.8]} 50... Rd5 {[%clk 0:00:10.8]} 51. Rb4 {[%clk
0:00:06.5]} 51... Ne5 {[%clk 0:00:10.1]} 52. Rc3 {[%clk 0:00:06.7]} 52... Ng4+
{[%clk 0:00:10.6]} 53. Kg2 {[%clk 0:00:06.7]} 53... h3+ {[%clk 0:00:08.5]} 54.
Rxh3 {[%clk 0:00:06.5]} 54... Rd2 {[%clk 0:00:06.7]} 55. Rf3 {[%clk 0:00:07]}
55... Ne5 {[%clk 0:00:07.1]} 56. Rg3+ {[%clk 0:00:06.7]} 56... Ng4 {[%clk
0:00:07.8]} 57. Rf3 {[%clk 0:00:06]} 57... Ne5 {[%clk 0:00:07.8]} 58. Rc3 {[%clk
0:00:04.2]} 58... Ng4 {[%clk 0:00:08]} 59. Rg3 {[%clk 0:00:04.7]} 59... Kf6
{[%clk 0:00:07.4]} 60. Rf3 {[%clk 0:00:04.6]} 60... Ne5 {[%clk 0:00:07.2]} 61.
Rc3 {[%clk 0:00:04.7]} 61... Ng4 {[%clk 0:00:07.5]} 62. Rf4 {[%clk 0:00:05.3]}
62... Ke5 {[%clk 0:00:06.6]} 63. Rff3 {[%clk 0:00:05.4]} 63... Rb2 {[%clk
0:00:05.5]} 64. Rc6 {[%clk 0:00:05]} 64... Rxb5 {[%clk 0:00:05]} 65. Rc8 {[%clk
0:00:05.2]} 65... Rb2 {[%clk 0:00:04.3]} 66. Re8+ {[%clk 0:00:05.6]} 66... Kf6
{[%clk 0:00:03.9]} 67. Rf8+ {[%clk 0:00:06.1]} 67... Kg6 {[%clk 0:00:04.3]} 68.
R8xf5 {[%clk 0:00:06.6]} 68... b5 {[%clk 0:00:03.4]} 69. Rc5 {[%clk 0:00:05.5]}
69... Nh6 {[%clk 0:00:02.1]} 70. Rg3+ {[%clk 0:00:05.3]} 70... Kf7 {[%clk
0:00:02]} 71. Rh3 {[%clk 0:00:05.4]} 71... Ng8 {[%clk 0:00:02.1]} 72. Rd3 {[%clk
0:00:05.4]} 72... Nf6 {[%clk 0:00:02.1]} 73. Rc7+ {[%clk 0:00:04.9]} 73... Ke6
{[%clk 0:00:02.4]} 74. Rb7 {[%clk 0:00:05.1]} 74... Nd5 {[%clk 0:00:02.2]} 75.
Kg3 {[%clk 0:00:03.9]} 75... b4 {[%clk 0:00:02.3]} 76. Rb8 {[%clk 0:00:03.9]}
76... Kd6 {[%clk 0:00:01.5]} 77. Rd8+ {[%clk 0:00:04.2]} 77... Kc6 {[%clk
0:00:02.1]} 78. R8xd5 {[%clk 0:00:04.8]} 78... Rb1 {[%clk 0:00:03]} 79. R5d4
{[%clk 0:00:05.2]} 79... b3 {[%clk 0:00:03.3]} 80. Kf3 {[%clk 0:00:05.8]} 80...
b2 {[%clk 0:00:03.6]} 81. Rb4 {[%clk 0:00:06.3]} 81... Kc5 {[%clk 0:00:02.9]}
82. Rdb3 {[%clk 0:00:06.2]} 82... Rh1 {[%clk 0:00:02.1]} 83. Rxb2 {[%clk
0:00:06.5]} 83... Rh3+ {[%clk 0:00:03]} 84. Kg2 {[%clk 0:00:07]} 84... Rh8
{[%clk 0:00:03.9]} 85. R4b3 {[%clk 0:00:07.3]} 1-0

[Event "Early-Titled-Tuesday-Blitz-July-09-2024"]
[Site "Chess.com"]
[Date "2024.07.09"]
[Round "2"]
[White "AcostaPablo"]
[Black "mishanick"]
[Result "1/2-1/2"]
[WhiteElo "2683"]
[BlackElo "3100"]
[TimeControl "180+1"]
[EndTime "8:19:43 PDT"]
[Termination "Game drawn - insufficient material"]

1. e4 {[%clk 0:02:58.9]} 1... c5 {[%clk 0:02:59.7]} 2. Nf3 {[%clk 0:02:58.9]}
2... d6 {[%clk 0:03:00]} 3. Bb5+ {[%clk 0:02:59.4]} 3... Bd7 {[%clk 0:03:00.1]}
4. Bxd7+ {[%clk 0:02:59.3]} 4... Nxd7 {[%clk 0:03:00.8]} 5. O-O {[%clk
0:02:58.9]} 5... e6 {[%clk 0:03:01.4]} 6. Qe2 {[%clk 0:02:57.1]} 6... Be7 {[%clk
0:02:58.6]} 7. d3 {[%clk 0:02:55.4]} 7... Bf6 {[%clk 0:02:57.6]} 8. Nbd2 {[%clk
0:02:49.2]} 8... Ne7 {[%clk 0:02:56]} 9. Nc4 {[%clk 0:02:48.8]} 9... Qc7 {[%clk
0:02:55.6]} 10. Bf4 {[%clk 0:02:46.1]} 10... Ne5 {[%clk 0:02:52.5]} 11. Nfxe5
{[%clk 0:02:13.9]} 11... Bxe5 {[%clk 0:02:41.5]} 12. Be3 {[%clk 0:02:07.8]}
12... O-O {[%clk 0:02:38.8]} 13. f4 {[%clk 0:02:04]} 13... Bd4 {[%clk
0:02:38.9]} 14. c3 {[%clk 0:02:02.2]} 14... Bxe3+ {[%clk 0:02:38.9]} 15. Nxe3
{[%clk 0:02:02.7]} 15... Rae8 {[%clk 0:02:36]} 16. Rf3 {[%clk 0:02:01.4]} 16...
f5 {[%clk 0:02:34.3]} 17. Raf1 {[%clk 0:01:55.9]} 17... Qc6 {[%clk 0:02:28.5]}
18. Nc4 {[%clk 0:01:45.4]} 18... b5 {[%clk 0:02:26.8]} 19. Nd2 {[%clk
0:01:45.1]} 19... fxe4 {[%clk 0:02:14.8]} 20. Nxe4 {[%clk 0:01:39.3]} 20... c4
{[%clk 0:02:13.6]} 21. d4 {[%clk 0:01:35.7]} 21... Nd5 {[%clk 0:02:10.5]} 22.
Ng5 {[%clk 0:01:31.7]} 22... Qd7 {[%clk 0:02:07.1]} 23. Qe4 {[%clk 0:01:21.4]}
23... Nf6 {[%clk 0:02:06.4]} 24. Qc2 {[%clk 0:01:20.7]} 24... h6 {[%clk
0:02:04.8]} 25. Ne4 {[%clk 0:01:20.4]} 25... Nd5 {[%clk 0:02:04.5]} 26. Qf2
{[%clk 0:01:14.2]} 26... Rf7 {[%clk 0:02:00.2]} 27. Re1 {[%clk 0:01:12]} 27...
Ref8 {[%clk 0:02:00]} 28. g3 {[%clk 0:01:06.6]} 28... g5 {[%clk 0:01:54.5]} 29.
Kh1 {[%clk 0:00:46.5]} 29... g4 {[%clk 0:01:44.1]} 30. Rfe3 {[%clk 0:00:43.9]}
30... Nxe3 {[%clk 0:01:44.5]} 31. Qxe3 {[%clk 0:00:44.5]} 31... e5 {[%clk
0:01:40.7]} 32. fxe5 {[%clk 0:00:35.3]} 32... dxe5 {[%clk 0:01:40.1]} 33. dxe5
{[%clk 0:00:29.5]} 33... Rf1+ {[%clk 0:01:38.4]} 34. Rxf1 {[%clk 0:00:23.4]}
34... Rxf1+ {[%clk 0:01:38]} 35. Kg2 {[%clk 0:00:24.1]} 35... Rf3 {[%clk
0:00:35.5]} 36. Qxh6 {[%clk 0:00:22.1]} 36... Qf5 {[%clk 0:00:32.7]} 37. Qc6
{[%clk 0:00:15.4]} 37... Qxe5 {[%clk 0:00:23.8]} 38. Qc8+ {[%clk 0:00:15.4]}
38... Kf7 {[%clk 0:00:16.4]} 39. Qxg4 {[%clk 0:00:14.5]} 39... Re3 {[%clk
0:00:17]} 40. Ng5+ {[%clk 0:00:14.8]} 40... Ke7 {[%clk 0:00:17.3]} 41. Kh3
{[%clk 0:00:13.1]} 41... a5 {[%clk 0:00:14.8]} 42. Qh5 {[%clk 0:00:10.4]} 42...
Qf5+ {[%clk 0:00:14.8]} 43. Kh4 {[%clk 0:00:10.2]} 43... Re5 {[%clk 0:00:13.4]}
44. Qh6 {[%clk 0:00:08.9]} 44... Re2 {[%clk 0:00:08.5]} 45. Qg7+ {[%clk
0:00:08.1]} 45... Ke8 {[%clk 0:00:08.8]} 46. Qg8+ {[%clk 0:00:08.2]} 46... Kd7
{[%clk 0:00:09]} 47. Qg7+ {[%clk 0:00:07.7]} 47... Kc6 {[%clk 0:00:08.4]} 48.
Qh6+ {[%clk 0:00:07]} 48... Kd5 {[%clk 0:00:08]} 49. h3 {[%clk 0:00:05.7]} 49...
b4 {[%clk 0:00:05.3]} 50. Qb6 {[%clk 0:00:05.8]} 50... Re5 {[%clk 0:00:03.4]}
51. Qxa5+ {[%clk 0:00:04.1]} 51... Kc6 {[%clk 0:00:03.9]} 52. Qa6+ {[%clk
0:00:04.2]} 52... Kc7 {[%clk 0:00:03.7]} 53. Qxc4+ {[%clk 0:00:04.6]} 53... Kd8
{[%clk 0:00:03.4]} 54. Qd4+ {[%clk 0:00:04.9]} 54... Ke8 {[%clk 0:00:03.2]} 55.
Qf4 {[%clk 0:00:03.2]} 55... Qxf4+ {[%clk 0:00:01.4]} 56. gxf4 {[%clk
0:00:04.1]} 56... Re2 {[%clk 0:00:01.8]} 57. cxb4 {[%clk 0:00:04.3]} 57... Rxb2
{[%clk 0:00:02.5]} 58. a3 {[%clk 0:00:04.3]} 58... Rb3 {[%clk 0:00:03.1]} 59.
Kg4 {[%clk 0:00:04.9]} 59... Rxa3 {[%clk 0:00:03.2]} 60. h4 {[%clk 0:00:05.4]}
60... Rb3 {[%clk 0:00:03.9]} 61. h5 {[%clk 0:00:06]} 61... Kf8 {[%clk
0:00:04.2]} 62. h6 {[%clk 0:00:06]} 62... Rxb4 {[%clk 0:00:04.8]} 63. Kf5 {[%clk
0:00:05.2]} 63... Rb6 {[%clk 0:00:05]} 64. Ne6+ {[%clk 0:00:04.3]} 64... Kg8
{[%clk 0:00:05.4]} 65. Kf6 {[%clk 0:00:04.7]} 65... Kh7 {[%clk 0:00:05.9]} 66.
f5 {[%clk 0:00:05.4]} 66... Kxh6 {[%clk 0:00:06.3]} 67. Ke7 {[%clk 0:00:05.9]}
67... Rb7+ {[%clk 0:00:06.5]} 68. Kf6 {[%clk 0:00:06.1]} 68... Ra7 {[%clk
0:00:06.4]} 69. Nf4 {[%clk 0:00:05.4]} 69... Ra8 {[%clk 0:00:05.8]} 70. Ne6
{[%clk 0:00:06]} 70... Rb8 {[%clk 0:00:05.5]} 71. Nf4 {[%clk 0:00:06.6]} 71...
Rf8+ {[%clk 0:00:06]} 72. Ke5 {[%clk 0:00:06.5]} 72... Rf7 {[%clk 0:00:06.2]}
73. Ke6 {[%clk 0:00:05.5]} 73... Ra7 {[%clk 0:00:05.9]} 74. Kf6 {[%clk
0:00:05.3]} 74... Ra1 {[%clk 0:00:05.3]} 75. Ne6 {[%clk 0:00:05.5]} 75... Ra6
{[%clk 0:00:06]} 76. Kf7 {[%clk 0:00:04.9]} 76... Kh5 {[%clk 0:00:05.2]} 77. Kf6
{[%clk 0:00:04.7]} 77... Kg4 {[%clk 0:00:04.5]} 78. Kg6 {[%clk 0:00:03.9]} 78...
Rb6 {[%clk 0:00:04.8]} 79. Kf6 {[%clk 0:00:04]} 79... Rb5 {[%clk 0:00:04.8]} 80.
Ng7 {[%clk 0:00:03.9]} 80... Rb6+ {[%clk 0:00:02.5]} 81. Ke5 {[%clk 0:00:02.2]}
81... Kg5 {[%clk 0:00:01.5]} 82. Ne6+ {[%clk 0:00:02.8]} 82... Kh6 {[%clk
0:00:02.2]} 83. Kf6 {[%clk 0:00:03]} 83... Rb1 {[%clk 0:00:02.4]} 84. Kf7 {[%clk
0:00:03.3]} 84... Rf1 {[%clk 0:00:02.7]} 85. f6 {[%clk 0:00:03.8]} 85... Rf2
{[%clk 0:00:03]} 86. Ke7 {[%clk 0:00:04.3]} 86... Kg6 {[%clk 0:00:02.9]} 87.
Nf8+ {[%clk 0:00:05]} 87... Kf5 {[%clk 0:00:02.8]} 88. f7 {[%clk 0:00:05.4]}
88... Re2+ {[%clk 0:00:03.3]} 89. Ne6 {[%clk 0:00:01.9]} 89... Rxe6+ {[%clk
0:00:03.2]} 90. Kd7 {[%clk 0:00:02.6]} 90... Rf6 {[%clk 0:00:03.7]} 91. Ke7
{[%clk 0:00:03.3]} 91... Re6+ {[%clk 0:00:03.8]} 92. Kd7 {[%clk 0:00:03.8]}
92... Rf6 {[%clk 0:00:03.1]} 93. Ke7 {[%clk 0:00:04.3]} 93... Kg6 {[%clk
0:00:03.9]} 94. f8=Q {[%clk 0:00:04.4]} 94... Rxf8 {[%clk 0:00:04.8]} 95. Kxf8
{[%clk 0:00:04.9]} 1/2-1/2